bitfinex/quotes_SOLUSD_20250223
["timestamp","ask_amount","ask_price","bid_price","bid_amount"]
[1740353174280,18.64964886,167.65,167.6,0.03]
[1740353174578,14.51341394,167.61,167.6,0.03]
[1740353176264,39.1292628,167.61,167.6,0.03]
[1740353176579,33.1630628,167.61,167.6,0.03]
[1740353176760,14.51341394,167.61,167.6,0.03]
[1740353178795,80.8,167.68,167.6,14.54341394]
[1740353179084,95.31341394,167.68,167.63,14.51341394]
[1740353179285,80.8,167.68,167.63,14.51341394]
[1740353179502,14.51341394,167.68,167.63,14.51341394]
[1740353179677,14.51341394,167.68,167.64,5.9651]
[1740353180292,14.51341394,167.67,167.64,5.9651]
[1740353180478,5.18,167.69,167.6,95.64341394]
[1740353180479,14.51341394,167.66,167.6,95.64341394]
[1740353180682,14.51341394,167.65,167.61,5.9661]
[1740353180887,14.51341394,167.64,167.6,5.9964]
[1740353181074,14.51341394,167.62,167.6,0.03]
[1740353181282,14.51341394,167.64,167.6,5.9965]
[1740353181498,95.31341394,167.65,167.6,5.9965]
[1740353183006,14.51341394,167.67,167.62,14.51341394]
[1740353183205,14.51341394,167.68,167.63,14.51341394]
[1740353183404,14.51341394,167.68,167.62,14.51341394]
[1740353183577,14.51341394,167.67,167.62,14.51341394]
[1740353183777,14.51341394,167.68,167.62,14.51341394]
[1740353183976,14.51341394,167.68,167.63,14.51341394]
[1740353184176,14.51341394,167.67,167.62,14.51341394]
[1740353184421,14.51341394,167.65,167.6,87.0965]
[1740353184697,14.51341394,167.67,167.61,14.51341394]
[1740353185198,14.51341394,167.65,167.6,116.52631394]
[1740353185399,14.51341394,167.65,167.6,102.0129]
[1740353185579,14.51341394,167.66,167.6,116.52631394]
[1740353186111,14.51341394,167.66,167.61,14.51341394]
[1740353186480,14.51341394,167.67,167.62,20.47921394]
[1740353186783,14.51341394,167.68,167.62,20.47921394]
[1740353187397,14.51341394,167.68,167.63,14.51341394]
[1740353187878,14.57641394,167.69,167.63,14.51341394]
[1740353188606,14.57641394,167.69,167.64,5.9651]
[1740353189112,0.063,167.69,167.65,16.08791394]
[1740353189413,14.57641394,167.69,167.64,5.9651]
[1740353190115,14.51341394,167.66,167.63,81.1]
[1740353190423,14.51341394,167.65,167.63,81.1]
[1740353190717,14.51341394,167.66,167.63,81.1]
[1740353194117,14.51341394,167.66,167.63,87.0654]
[1740353194692,14.51341394,167.66,167.63,5.9654]
[1740353195498,14.51341394,167.66,167.62,5.9657]
[1740353196219,14.51341394,167.65,167.61,1.5745]
[1740353196424,14.51341394,167.62,167.6,0.03]
[1740353197413,14.51341394,167.61,167.6,0.03]
[1740353199008,14.51341394,167.62,167.6,0.03]
[1740353199329,14.51341394,167.61,167.6,0.03]
[1740353200202,14.51341394,167.62,167.6,0.03]
[1740353202716,14.51341394,167.61,167.6,0.03]
[1740353204111,33.1630628,167.61,167.6,0.03]
[1740353204824,39.1292628,167.61,167.6,0.03]
[1740353205933,119.9292628,167.61,167.6,0.03]
[1740353211743,95.31341394,167.61,167.6,0.03]
[1740353212432,100.49341394,167.61,167.6,0.03]
[1740353213929,95.31341394,167.61,167.6,0.03]
[1740353214126,100.49341394,167.61,167.6,0.03]
[1740353215529,19.69341394,167.61,167.6,0.03]
[1740353218342,44.3092628,167.61,167.6,0.03]
[1740353218542,58.82267674,167.61,167.6,0.03]
[1740353219616,60.35207674,167.61,167.6,0.03]
[1740353220039,18.64964886,167.6,167.49,20.75171394]
[1740353220242,14.51341394,167.53,167.49,12.2086]
[1740353220738,5.18,167.54,167.49,26.72201394]
[1740353221724,5.18,167.54,167.51,14.51341394]
[1740353221928,5.18,167.54,167.52,14.51341394]
[1740353222119,5.18,167.54,167.51,14.51341394]
[1740353222943,5.18,167.54,167.52,14.51341394]
[1740353223518,5.18,167.54,167.51,14.51341394]
[1740353223930,5.18,167.54,167.52,14.51341394]
[1740353224244,5.18,167.54,167.49,108.2348]
[1740353224245,5.18,167.54,167.51,14.51341394]
[1740353224445,5.18,167.54,167.52,14.51341394]
[1740353224840,14.51341394,167.62,167.53,14.51341394]
[1740353225017,14.51341394,167.62,167.56,14.51341394]
[1740353225018,5.18,167.61,167.56,14.51341394]
[1740353225845,5.18,167.61,167.57,5.9676]
[1740353226952,19.69341394,167.61,167.57,5.9676]
[1740353227337,5.18,167.61,167.57,35.40011394]
[1740353229052,5.18,167.61,167.58,14.51341394]
[1740353229246,14.51341394,167.64,167.58,14.51341394]
[1740353229247,5.18,167.63,167.58,14.51341394]
[1740353229752,14.51341394,167.66,167.6,14.51341394]
[1740353229951,5.18,167.65,167.61,14.51341394]
[1740353230528,19.69341394,167.65,167.6,14.51341394]
[1740353230832,14.51341394,167.64,167.59,5.9669]
[1740353231434,14.51341394,167.64,167.59,81.1]
[1740353231639,14.51341394,167.63,167.59,81.1]
[1740353231830,33.1630628,167.64,167.59,81.1]
[1740353232642,14.51341394,167.63,167.59,81.1]
[1740353232828,14.51341394,167.62,167.59,81.1]
[1740353233029,14.51341394,167.62,167.56,20.48111394]
[1740353233225,14.51341394,167.64,167.58,14.51341394]
[1740353233756,14.51341394,167.64,167.56,20.8877]
[1740353233935,19.69341394,167.65,167.6,14.51341394]
[1740353234248,19.69341394,167.65,167.61,14.51341394]
[1740353234249,5.18,167.65,167.61,14.51341394]
[1740353234452,5.18,167.65,167.6,14.51341394]
[1740353234949,19.69341394,167.65,167.6,14.51341394]
[1740353235155,19.69341394,167.65,167.6,20.47981394]
[1740353235458,5.18,167.66,167.6,20.47981394]
[1740353235660,19.69341394,167.66,167.61,14.51341394]
[1740353236458,19.69341394,167.66,167.61,87.066]
[1740353237461,14.51341394,167.66,167.61,87.066]
[1740353237661,19.69341394,167.66,167.61,87.066]
[1740353240132,14.51341394,167.65,167.61,81.1]
[1740353240339,14.51341394,167.64,167.61,81.1]
[1740353241267,14.51341394,167.65,167.61,87.0661]
[1740353241762,14.51341394,167.65,167.61,5.9661]
[1740353242267,14.51341394,167.65,167.6,5.9665]
[1740353243058,5.18,167.66,167.61,14.51341394]
[1740353244244,5.243,167.66,167.62,5.9658]
[1740353244763,5.243,167.66,167.62,20.47921394]
[1740353245254,5.243,167.66,167.62,101.57921394]
[1740353245455,19.75641394,167.66,167.62,87.0658]
[1740353245657,5.243,167.66,167.62,87.0658]
[1740353246068,5.243,167.66,167.62,101.57921394]
[1740353246244,5.243,167.66,167.63,20.47871394]
[1740353246652,0.063,167.66,167.63,20.47871394]
[1740353247237,0.063,167.66,167.63,5.9653]
[1740353250172,0.063,167.66,167.63,20.47871394]
[1740353250383,0.063,167.66,167.65,34.51341394]
[1740353250588,0.063,167.66,167.65,20.0]
[1740353252448,0.063,167.66,167.65,25.9648]
[1740353253067,0.063,167.66,167.63,81.1]
[1740353253283,0.063,167.66,167.63,87.0653]
[1740353253584,14.57641394,167.66,167.63,87.0653]
[1740353253885,0.063,167.66,167.63,87.0653]
[1740353254093,0.063,167.66,167.63,81.1]
[1740353254270,9.30738002,167.64,167.6,0.03]
[1740353254776,9.30738002,167.64,167.6,5.9964]
[1740353254951,9.30738002,167.65,167.6,5.9964]
[1740353255154,9.37038002,167.66,167.61,9.30738002]
[1740353255694,14.60520703,167.66,167.61,14.54220703]
[1740353256110,14.54220703,167.65,167.6,20.53860703]
[1740353256296,14.54220703,167.63,167.6,0.03]
[1740353258408,14.54220703,167.62,167.6,0.03]
[1740353259478,11.1451,167.64,167.6,0.03]
[1740353259479,14.54220703,167.61,167.6,0.03]
[1740353261295,5.9659,167.62,167.6,0.03]
[1740353261296,14.54220703,167.62,167.6,0.03]
[1740353261595,14.54220703,167.61,167.6,0.03]
[1740353262884,33.19185589,167.61,167.6,0.03]
[1740353263907,39.15805589,167.61,167.6,0.03]
[1740353267706,20.50840703,167.61,167.6,0.03]
[1740353267883,14.54220703,167.62,167.6,0.03]
[1740353268507,14.54220703,167.63,167.6,0.03]
[1740353268806,5.18,167.64,167.6,0.03]
[1740353268807,25.68730703,167.64,167.6,0.03]
[1740353269517,5.18,167.64,167.6,0.03]
[1740353270107,25.68730703,167.64,167.6,0.03]
[1740353270687,14.54220703,167.63,167.6,0.03]
[1740353270892,14.54220703,167.62,167.6,0.03]
[1740353275213,20.50780703,167.63,167.6,0.03]
[1740353277132,19.72220703,167.64,167.6,0.03]
[1740353277318,14.54220703,167.64,167.6,0.03]
[1740353277815,9.30956355,167.64,167.6,0.03]
[1740353279626,15.27476355,167.64,167.6,0.03]
[1740353280012,9.30956355,167.61,167.6,0.03]
[1740353280421,9.30956355,167.63,167.6,0.03]
[1740353281410,15.33776355,167.64,167.6,0.03]
[1740353281604,9.37256355,167.64,167.6,0.03]
[1740353281918,0.063,167.64,167.6,0.03]
[1740353282224,0.063,167.64,167.6,9.33956355]
[1740353283854,0.063,167.64,167.61,15.27576355]
[1740353285211,0.063,167.64,167.62,9.30956355]
[1740353286122,0.063,167.64,167.62,5.9656]
[1740353286808,0.063,167.64,167.61,5.9661]
[1740353289542,9.30956355,167.63,167.6,81.13]
[1740353289743,9.30956355,167.61,167.6,0.03]
[1740353290425,27.95921241,167.61,167.6,0.03]
[1740353291825,33.92541241,167.61,167.6,0.03]
[1740353294655,80.8,167.62,167.6,0.03]
[1740353295025,90.10956355,167.62,167.6,0.03]
[1740353295951,9.30956355,167.61,167.6,0.03]
[1740353298034,96.07546355,167.62,167.6,0.03]
[1740353298235,18.71264886,167.64,167.6,0.03]
[1740353298442,9.30956355,167.61,167.6,0.03]
[1740353301455,0.063,167.64,167.6,9.33956355]
[1740353301758,0.063,167.64,167.61,9.30956355]
[1740353302762,0.063,167.64,167.62,5.9658]
[1740353303274,0.063,167.64,167.63,9.30956355]
[1740353303635,0.063,167.64,167.62,15.27536355]
[1740353305071,0.063,167.64,167.63,9.30956355]
[1740353306271,0.063,167.64,167.63,15.27506355]
[1740353308873,0.063,167.66,167.65,20.0]
[1740353309172,0.063,167.66,167.65,29.30956355]
[1740353309663,0.063,167.66,167.65,110.40956355]
[1740353310654,0.063,167.66,167.65,116.37436355]
[1740353313541,0.063,167.66,167.65,81.1]
[1740353314050,14.53256355,167.66,167.6,15.30576355]
[1740353314244,9.30956355,167.65,167.63,20.0]
[1740353314645,9.30956355,167.65,167.6,5.9962]
[1740353315639,9.30956355,167.64,167.6,5.9962]
[1740353315864,9.30956355,167.65,167.6,5.9962]
[1740353316365,9.30956355,167.65,167.6,0.03]
[1740353316572,9.30956355,167.64,167.6,0.03]
[1740353323384,9.30956355,167.63,167.6,0.03]
[1740353323548,9.30956355,167.62,167.6,0.03]
[1740353324581,9.30956355,167.63,167.6,0.03]
[1740353325555,15.27506355,167.63,167.6,0.03]
[1740353329589,9.30956355,167.64,167.6,0.03]
[1740353330471,15.27456355,167.65,167.6,0.03]
[1740353331059,9.30956355,167.65,167.6,0.03]
[1740353332679,9.30956355,167.65,167.6,5.9965]
[1740353334081,101.29706355,167.66,167.6,15.30606355]
[1740353334277,0.063,167.66,167.61,9.30956355]
[1740353334581,5.16,167.65,167.61,9.30956355]
[1740353334968,14.53256355,167.66,167.6,15.30606355]
[1740353337683,0.063,167.65,167.6,15.30606355]
[1740353339888,5.223,167.65,167.6,15.30606355]
[1740353342172,14.53256355,167.65,167.6,5.9965]
[1740353342504,9.30956355,167.63,167.6,0.03]
[1740353344494,15.27506355,167.63,167.6,0.03]
[1740353345099,9.30956355,167.61,167.6,0.03]
[1740353346291,15.27576355,167.61,167.6,0.03]
[1740353348372,33.92541241,167.61,167.6,0.03]
[1740353351483,5.16,167.61,167.6,0.03]
[1740353351984,5.16,167.62,167.6,0.03]
[1740353352195,14.46956355,167.62,167.6,0.03]
[1740353352379,5.16,167.62,167.6,0.03]
[1740353352703,5.223,167.64,167.6,9.33956355]
[1740353353707,5.223,167.64,167.6,0.03]
[1740353353903,20.49786355,167.64,167.6,0.03]
[1740353354102,9.30956355,167.61,167.6,0.03]
[1740353354302,9.30956355,167.62,167.6,0.03]
[1740353355205,27.95921241,167.63,167.6,0.03]
[1740353356108,33.92481241,167.63,167.6,0.03]
[1740353358419,9.30956355,167.62,167.6,0.03]
[1740353359127,33.92481241,167.63,167.6,0.03]
[1740353362417,33.92481241,167.63,167.57,34.80686355]
[1740353367621,24.61524886,167.63,167.57,34.80686355]
[1740353367802,33.92481241,167.63,167.57,34.80686355]
[1740353368702,9.30956355,167.62,167.57,25.9673]
[1740353369303,12.29336745,167.62,167.57,25.9673]
[1740353371222,33.92481241,167.63,167.57,35.27686355]
[1740353372326,27.95921241,167.63,167.57,35.30686355]
[1740353373933,9.30956355,167.62,167.57,25.9973]
[1740353378523,18.64964886,167.61,167.57,5.9973]
[1740353378734,9.30956355,167.59,167.57,0.03]
[1740353379032,14.44956355,167.58,167.57,0.03]
[1740353382505,39.06641241,167.58,167.57,0.03]
[1740353383433,40.03641241,167.58,167.57,0.03]
[1740353384016,47.94641241,167.58,167.57,0.03]
[1740353385142,48.94641241,167.58,167.57,0.03]
[1740353387036,0.97,167.56,167.47,5.9712]
[1740353387213,0.97,167.56,167.46,90.43956355]
[1740353387214,9.30956355,167.51,167.46,6.0015]
[1740353387418,14.44956355,167.5,167.46,6.0015]
[1740353387624,9.30956355,167.49,167.46,6.0015]
[1740353387932,9.30956355,167.48,167.46,0.03]
[1740353388430,27.95921241,167.49,167.46,0.03]
[1740353388749,9.30956355,167.48,167.46,0.03]
[1740353389247,27.95921241,167.49,167.46,0.03]
[1740353390422,30.96860275,167.49,167.46,0.03]
[1740353393145,9.30956355,167.48,167.46,0.03]
[1740353395155,21.6590392,167.49,167.46,0.03]
[1740353395519,30.96860275,167.49,167.46,0.03]
[1740353397535,9.30956355,167.48,167.46,0.03]
[1740353397722,18.64964886,167.47,167.46,0.03]
[1740353400269,80.8,167.5,167.46,0.03]
[1740353400436,85.94,167.5,167.46,9.33956355]
[1740353400626,80.8,167.5,167.46,0.03]
[1740353400827,80.8,167.5,167.46,9.33956355]
[1740353401125,5.14,167.5,167.48,9.30956355]
[1740353401324,5.14,167.5,167.49,9.30956355]
[1740353401526,5.14,167.5,167.48,9.30956355]
[1740353401948,18.64964886,167.49,167.46,0.03]
[1740353402161,27.95921241,167.49,167.46,0.03]
[1740353402472,18.64964886,167.49,167.46,0.03]
[1740353402647,27.95921241,167.49,167.46,0.03]
[1740353403428,18.64964886,167.47,167.46,0.03]
[1740353403646,33.92981241,167.49,167.46,0.03]
[1740353404150,27.95921241,167.49,167.46,0.03]
[1740353407646,18.64964886,167.47,167.46,0.03]
[1740353408045,27.95921241,167.49,167.46,0.03]
[1740353409344,18.64964886,167.47,167.46,0.03]
[1740353410356,9.30956355,167.48,167.46,0.03]
[1740353410357,27.95921241,167.49,167.46,0.03]
[1740353410535,18.64964886,167.47,167.46,0.03]
[1740353411534,27.95921241,167.47,167.46,0.03]
[1740353412657,33.93041241,167.47,167.46,0.03]
[1740353415032,33.93041241,167.47,167.39,14.81346355]
[1740353415232,27.95921241,167.45,167.39,14.81346355]
[1740353415432,18.64964886,167.43,167.39,14.81346355]
[1740353416361,18.64964886,167.43,167.39,5.5039]
[1740353416563,18.64964886,167.43,167.39,14.81346355]
[1740353417278,27.95921241,167.43,167.39,5.5039]
[1740353417445,18.64964886,167.43,167.39,14.81346355]
[1740353418341,27.95921241,167.43,167.37,15.28426355]
[1740353418760,33.93201241,167.43,167.37,15.28426355]
[1740353419154,33.93201241,167.43,167.34,16.5009]
[1740353419155,18.64964886,167.41,167.34,1.562]
[1740353419456,108.75921241,167.41,167.35,15.28496355]
[1740353420045,99.44964886,167.41,167.36,9.30956355]
[1740353420251,99.44964886,167.41,167.37,9.30956355]
[1740353420555,99.44964886,167.41,167.37,15.28426355]
[1740353420776,80.8,167.41,167.39,0.03]
[1740353420985,6.0581,167.45,167.39,0.03]
[1740353420986,21.33956355,167.45,167.4,9.30956355]
[1740353421156,5.14,167.41,167.4,9.30956355]
[1740353422043,5.14,167.41,167.39,9.33956355]
[1740353422565,5.14,167.41,167.4,9.30956355]
[1740353423376,4.47816881,167.48,167.4,9.30956355]
[1740353423547,2.92636881,167.48,167.44,9.30956355]
[1740353423748,5.14,167.47,167.45,9.30956355]
[1740353423949,5.14,167.47,167.46,9.30956355]
[1740353424255,5.14,167.47,167.45,9.30956355]
[1740353424450,5.14,167.47,167.45,15.28116355]
[1740353426056,5.14,167.47,167.46,9.30956355]
[1740353426367,23.78964886,167.47,167.45,5.9716]
[1740353426569,18.64964886,167.46,167.43,9.30956355]
[1740353426967,5.14,167.47,167.43,9.30956355]
[1740353427170,5.14,167.47,167.44,9.30956355]
[1740353427361,5.14,167.47,167.45,9.30956355]
[1740353427777,5.14,167.47,167.45,15.28136355]
[1740353428276,5.14,167.47,167.45,5.9718]
[1740353432978,5.203,167.47,167.45,5.9718]
[1740353437601,5.203,167.47,167.44,15.28176355]
[1740353441496,5.203,167.47,167.45,9.30956355]
[1740353442173,5.203,167.47,167.46,15.28106355]
[1740353442370,0.063,167.47,167.46,15.28106355]
[1740353445781,5.12,167.52,167.46,16.93276355]
[1740353445984,18.64964886,167.53,167.51,9.30956355]
[1740353446314,5.12,167.53,167.52,9.30956355]
[1740353446477,5.12,167.53,167.51,9.30956355]
[1740353446685,5.12,167.54,167.51,9.30956355]
[1740353446915,5.12,167.54,167.52,5.9694]
[1740353447940,28.02221241,167.57,167.52,5.9694]
[1740353448153,18.64964886,167.54,167.52,5.9694]
[1740353450150,18.64964886,167.54,167.49,5.9705]
[1740353450430,18.64964886,167.52,167.48,5.9708]
[1740353451049,27.95921241,167.52,167.48,5.9708]
[1740353451355,18.64964886,167.48,167.43,9.30956355]
[1740353451540,23.76964886,167.48,167.43,15.28216355]
[1740353452147,23.76964886,167.48,167.44,9.30956355]
[1740353452516,23.76964886,167.48,167.44,15.28156355]
[1740353453038,5.12,167.48,167.47,9.30956355]
[1740353454622,5.12,167.48,167.47,15.28076355]
[1740353455526,5.12,167.48,167.47,15.31076355]
[1740353456515,5.12,167.48,167.47,6.0012]
[1740353458015,23.76964886,167.48,167.47,0.03]
[1740353460459,33.07921241,167.48,167.47,0.03]
[1740353461115,39.20361241,167.48,167.47,0.03]
[1740353461434,125.97441241,167.48,167.47,0.03]
[1740353464640,104.56964886,167.48,167.47,0.03]
[1740353465145,23.76964886,167.48,167.47,0.03]
[1740353465752,33.07921241,167.48,167.47,0.03]
[1740353466048,39.05001241,167.48,167.47,0.03]
[1740353466225,33.07921241,167.48,167.47,0.03]
[1740353466426,39.05001241,167.48,167.47,0.03]
[1740353466941,33.07921241,167.48,167.47,0.03]
[1740353467443,23.76964886,167.48,167.47,0.03]
[1740353469121,23.83264886,167.48,167.47,0.03]
[1740353470349,0.063,167.48,167.47,9.33956355]
[1740353471338,0.063,167.48,167.47,15.31076355]
[1740353471537,0.0001,167.48,167.47,97.99716355]
[1740353472147,5.183,167.54,167.47,104.66206355]
[1740353472333,0.063,167.54,167.53,9.30956355]
[1740353473230,0.063,167.54,167.53,15.27856355]
[1740353473640,0.063,167.54,167.51,9.30956355]
[1740353473840,0.063,167.54,167.5,110.40956355]
[1740353474332,0.063,167.54,167.53,9.30956355]
[1740353475461,0.063,167.54,167.53,15.27856355]
[1740353475657,0.063,167.54,167.52,9.30956355]
[1740353475950,0.063,167.54,167.53,9.30956355]
[1740353477051,0.063,167.54,167.53,15.27856355]
[1740353477553,0.063,167.54,167.53,96.37856355]
[1740353479643,0.0001,167.57,167.56,20.0]
[1740353479844,0.0001,167.57,167.56,35.43784227]
[1740353480052,0.0001,167.57,167.56,34.54295481]
[1740353481173,0.0001,167.57,167.56,40.51095481]
[1740353482970,0.0001,167.57,167.56,121.61095481]
[1740353483562,0.0001,167.57,167.56,122.61095481]
[1740353484533,0.0001,167.57,167.56,121.61095481]
[1740353496684,0.063,167.63,167.56,122.61095481]
[1740353496971,0.063,167.63,167.62,14.54295481]
[1740353497145,0.063,167.63,167.62,95.64295481]
[1740353497353,0.063,167.63,167.62,81.1]
[1740353498074,0.063,167.63,167.62,95.64295481]
[1740353498649,0.063,167.63,167.62,81.1]
[1740353500276,0.063,167.63,167.62,101.60875481]
[1740353500770,0.063,167.63,167.62,20.50875481]
[1740353502766,0.063,167.63,167.62,14.54295481]
[1740353503369,0.063,167.63,167.61,20.50905481]
[1740353503844,0.063,167.63,167.61,14.54295481]
[1740353504051,0.063,167.63,167.61,20.50915481]
[1740353504974,0.063,167.63,167.61,5.9662]
[1740353505274,18.64964886,167.62,167.59,5.9669]
[1740353505458,5.1,167.62,167.59,20.50985481]
[1740353505658,5.1,167.62,167.61,14.54295481]
[1740353507176,5.1,167.62,167.6,14.54295481]
[1740353507515,5.1,167.62,167.59,20.50985481]
[1740353507682,5.1,167.62,167.59,15.27632991]
[1740353509307,5.1,167.62,167.58,87.0672]
[1740353511205,18.64964886,167.61,167.57,5.9675]
[1740353511385,10.82112991,167.6,167.56,81.13]
[1740353511608,10.82112991,167.6,167.56,87.0979]
[1740353512492,18.64964886,167.59,167.56,81.13]
[1740353512687,18.64964886,167.59,167.56,0.03]
[1740353512985,27.95907877,167.59,167.56,0.03]
[1740353513382,9.30942991,167.57,167.56,0.03]
[1740353513612,14.55924932,167.57,167.56,0.03]
[1740353514120,33.20889818,167.58,167.56,0.03]
[1740353517312,14.55924932,167.57,167.56,0.03]
[1740353520213,18.64964886,167.58,167.56,0.03]
[1740353520603,33.20889818,167.58,167.56,0.03]
[1740353520912,18.64964886,167.58,167.56,0.03]
[1740353521112,1.5117,167.6,167.56,14.58924932]
[1740353521314,5.1,167.59,167.57,20.52684932]
[1740353521815,5.1,167.59,167.57,5.9676]
[1740353522116,18.64964886,167.58,167.56,0.03]
[1740353522297,14.55924932,167.57,167.56,0.03]
[1740353522620,18.64964886,167.58,167.56,0.03]
[1740353522621,33.20889818,167.58,167.56,0.03]
[1740353523313,5.1,167.57,167.56,0.03]
[1740353524706,5.1,167.57,167.56,14.58924932]
[1740353525109,5.1,167.59,167.56,14.58924932]
[1740353525315,5.1,167.59,167.57,14.55924932]
[1740353525499,5.1,167.59,167.58,14.55924932]
[1740353526095,5.1,167.59,167.57,14.55924932]
[1740353526607,5.1,167.59,167.58,5.9672]
[1740353531914,5.1,167.61,167.58,20.52644932]
[1740353532119,5.1,167.61,167.6,14.55924932]
[1740353532510,18.64964886,167.62,167.6,14.55924932]
[1740353533333,18.64964886,167.62,167.59,14.55924932]
[1740353534009,0.063,167.63,167.6,14.55924932]
[1740353534411,0.063,167.63,167.61,14.55924932]
[1740353534628,0.063,167.63,167.62,14.55924932]
[1740353535331,0.063,167.63,167.62,20.52504932]
[1740353535711,0.063,167.63,167.62,15.27256126]
[1740353537504,0.063,167.63,167.62,5.9658]
[1740353537828,0.063,167.63,167.61,81.1]
[1740353538715,23.74964886,167.62,167.61,81.1]
[1740353539036,18.64964886,167.61,167.57,5.9676]
[1740353539332,14.54396595,167.61,167.57,5.9676]
[1740353539811,14.54396595,167.61,167.56,81.13]
[1740353539812,18.64964886,167.58,167.56,0.03]
[1740353540008,33.19361481,167.58,167.56,0.03]
[1740353540620,18.64964886,167.58,167.56,0.03]
[1740353541220,14.54396595,167.57,167.56,0.03]
[1740353541432,33.19361481,167.57,167.56,0.03]
[1740353541810,40.89951481,167.57,167.56,0.03]
[1740353543129,46.86711481,167.57,167.56,0.03]
[1740353543925,40.89951481,167.57,167.56,0.03]
[1740353544433,18.64964886,167.57,167.56,0.03]
[1740353544737,23.74964886,167.57,167.56,0.03]
[1740353546242,5.1,167.57,167.56,14.57396595]
[1740353547114,5.1,167.57,167.56,0.03]
[1740353548751,38.29361481,167.57,167.56,0.03]
[1740353548931,23.74964886,167.57,167.56,0.03]
[1740353549129,18.64964886,167.57,167.56,0.03]
[1740353549336,23.74964886,167.57,167.56,0.03]
[1740353551235,5.1,167.57,167.56,14.57396595]
[1740353551520,5.1,167.57,167.56,0.03]
[1740353553041,19.64396595,167.57,167.56,0.03]
[1740353553227,38.29361481,167.57,167.56,0.03]
[1740353553732,44.26121481,167.57,167.56,0.03]
[1740353556142,45.23121481,167.57,167.56,0.03]
[1740353556326,46.23121481,167.57,167.56,0.03]
[1740353557132,54.46581481,167.57,167.56,0.03]
[1740353557422,264.91964886,167.56,167.48,0.03]
[1740353557638,18.64964886,167.49,167.48,0.03]
[1740353557833,23.74964886,167.49,167.48,0.03]
[1740353558448,5.1,167.49,167.48,0.03]
[1740353559652,18.64964886,167.52,167.48,14.57396595]
[1740353559827,18.64964886,167.52,167.5,14.54396595]
[1740353560553,5.1,167.53,167.51,14.54396595]
[1740353561238,5.1,167.53,167.52,14.54396595]
[1740353561437,5.1,167.53,167.52,20.51336595]
[1740353562030,5.1,167.57,167.52,20.51336595]
[1740353562224,5.1,167.57,167.54,14.54396595]
[1740353562428,5.1,167.59,167.55,14.54396595]
[1740353563544,0.063,167.57,167.55,20.51196595]
[1740353565550,0.063,167.57,167.56,14.54396595]
[1740353566743,0.063,167.57,167.55,20.51196595]
[1740353568330,0.063,167.57,167.55,5.968]
[1740353568532,0.063,167.57,167.55,20.51196595]
[1740353568946,0.063,167.57,167.56,14.54396595]
[1740353569748,0.063,167.57,167.56,20.51196595]
[1740353570264,0.063,167.57,167.56,101.61196595]
[1740353570440,0.063,167.57,167.56,109.75416595]
[1740353571743,0.063,167.63,167.59,20.0]
[1740353571950,0.063,167.63,167.62,14.54396595]
[1740353572754,0.063,167.63,167.62,20.50976595]
[1740353580069,0.063,167.63,167.62,101.60976595]
[1740353583293,0.063,167.63,167.62,87.0658]
[1740353584069,0.063,167.63,167.62,101.60976595]
[1740353593271,0.0001,167.63,167.62,101.60976595]
[1740353593476,0.063,167.65,167.64,20.0]
[1740353593772,0.063,167.66,167.64,115.64396595]
[1740353593990,0.063,167.66,167.65,14.54396595]
[1740353595602,0.063,167.66,167.65,9.300404]
[1740353595913,0.063,167.66,167.65,15.265204]
[1740353596385,0.063,167.66,167.64,87.065]
[1740353598317,0.063,167.66,167.64,81.1]
[1740353598512,0.063,167.66,167.64,5.9651]
[1740353603393,0.063,167.66,167.62,20.0]
[1740353603609,0.063,167.66,167.6,5.9665]